bitfinex-derivatives/quotes_BTCF0:USTF0_20240830
["timestamp","ask_amount","ask_price","bid_price","bid_amount"]
[1725036252479,0.005,58192.0,58191.0,0.085927]
[1725036253977,0.00025794,58193.0,58192.0,0.085926]
[1725036254679,0.085928,58191.0,58190.0,0.001]
[1725036254874,0.084928,58191.0,58184.0,0.2518]
[1725036255279,0.007,58192.0,58184.0,0.2518]
[1725036255683,0.007,58192.0,58184.0,0.4318]
[1725036255878,0.007,58192.0,58191.0,0.085928]
[1725036256885,0.187,58192.0,58191.0,0.085928]
[1725036257086,0.18,58192.0,58191.0,0.085928]
[1725036257283,0.179,58192.0,58191.0,0.085928]
[1725036258080,0.008,58192.0,58191.0,0.086928]
[1725036261188,0.283926,58192.0,58191.0,0.001]
[1725036261389,0.018,58192.0,58191.0,0.086928]
[1725036261587,0.008,58192.0,58191.0,0.086928]
[1725036261789,0.006,58192.0,58191.0,0.086928]
[1725036262694,0.008,58192.0,58191.0,0.086928]
[1725036263893,0.093926,58192.0,58191.0,0.086928]
[1725036264397,0.273926,58192.0,58191.0,0.001]
[1725036265196,0.08493,58190.0,58187.0,0.085932]
[1725036265395,0.00871813,58191.0,58187.0,0.085932]
[1725036265691,0.085934,58187.0,58179.0,0.4214]
[1725036266087,0.085934,58187.0,58185.0,0.085936]
[1725036266394,0.085934,58187.0,58186.0,0.085935]
[1725036267094,0.1475898,58187.0,58186.0,0.085935]
[1725036267395,0.085934,58187.0,58186.0,0.085935]
[1725036267588,0.06165401,58188.0,58187.0,0.085934]
[1725036267785,0.06165401,58188.0,58187.0,0.093934]
[1725036268093,0.14758601,58188.0,58187.0,0.093934]
[1725036268486,0.14758601,58188.0,58187.0,0.085934]
[1725036268487,0.06165401,58188.0,58187.0,0.085934]
[1725036269006,0.085932,58188.0,58187.0,0.085934]
[1725036269290,0.085932,58188.0,58181.0,0.3608]
[1725036269291,0.085935,58186.0,58185.0,0.085935]
[1725036269493,0.17316151,58188.0,58186.0,0.085935]
[1725036269693,0.085939,58184.0,58182.0,0.08619794]
[1725036269993,0.265939,58184.0,58183.0,0.08594]
[1725036270295,0.265934,58187.0,58182.0,0.00025794]
[1725036270493,0.14759133,58187.0,58185.0,0.085935]
[1725036270694,0.085934,58187.0,58182.0,0.00025794]
[1725036270898,0.06165653,58187.0,58186.0,0.085935]
[1725036271087,0.01,58188.0,58186.0,0.085935]
[1725036271301,0.15758953,58188.0,58186.0,0.085935]
[1725036271492,0.06165653,58187.0,58186.0,0.085935]
[1725036272599,0.06165653,58187.0,58186.0,0.089935]
[1725036272796,0.009,58187.0,58186.0,0.53667]
[1725036273095,0.009,58187.0,58186.0,0.53267]
[1725036273397,0.02567428,58188.0,58187.0,0.085934]
[1725036273596,0.00025794,58193.0,58192.0,0.085926]
[1725036275099,0.00225794,58193.0,58192.0,0.085926]
[1725036275398,0.02828521,58193.0,58192.0,0.085926]
[1725036275598,0.00225794,58193.0,58192.0,0.085926]
[1725036275791,0.01625794,58193.0,58192.0,0.085926]
[1725036276893,0.01625794,58193.0,58192.0,0.351852]
[1725036278098,0.03212287,58193.0,58192.0,0.798578]
[1725036278487,0.00625794,58193.0,58192.0,1.314098]
[1725036278688,0.00225794,58193.0,58192.0,1.914098]
[1725036278891,0.00625794,58193.0,58192.0,1.924098]
[1725036279093,0.02599847,58198.0,58197.0,0.257757]
[1725036279293,0.12478691,58209.0,58208.0,0.085903]
[1725036279294,0.09453407,58209.0,58208.0,0.085903]
[1725036279501,0.12127979,58209.0,58208.0,0.085903]
[1725036279702,0.085904,58207.0,58206.0,0.085905]
[1725036279889,0.33642554,58207.0,58206.0,0.085905]
[1725036280092,0.35807838,58207.0,58206.0,0.085905]
[1725036280398,0.27217438,58207.0,58206.0,0.085905]
[1725036280790,0.27217438,58207.0,58201.0,0.00025768]
[1725036281000,0.3608,58202.0,58201.0,0.00025768]
[1725036281196,0.18,58203.0,58202.0,0.085911]
[1725036281499,0.5408,58203.0,58201.0,0.00025768]
[1725036281701,0.085911,58202.0,58201.0,0.00025768]
[1725036281901,0.085916,58199.0,58197.0,0.002]
[1725036282103,0.69723854,58198.0,58197.0,0.002]
[1725036282296,0.69723854,58198.0,58195.0,0.085921]
[1725036282297,0.96441279,58198.0,58195.0,0.085921]
[1725036282492,0.08749579,58197.0,58196.0,0.08592]
[1725036283302,0.07052154,58197.0,58196.0,0.08592]
[1725036283803,0.08749579,58197.0,58196.0,0.08592]
[1725036284304,0.08749579,58197.0,58196.0,0.08892]
[1725036284796,0.09749579,58197.0,58196.0,0.08992]
[1725036285203,0.01,58197.0,58196.0,0.08992]
[1725036290602,0.305919,58197.0,58196.0,0.004]
[1725036291105,0.04,58197.0,58196.0,0.004]
[1725036291498,0.04,58197.0,58196.0,0.08992]
[1725036293706,0.01,58197.0,58196.0,0.4072783]
[1725036294100,0.01,58197.0,58196.0,0.6436783]
[1725036294406,0.01,58197.0,58196.0,0.7295983]
[1725036294611,0.00025685,58202.0,58201.0,0.257739]
[1725036294809,0.00025685,58202.0,58201.0,0.798539]
[1725036295106,0.00025685,58202.0,58201.0,3.108539]
[1725036295700,0.01425685,58202.0,58201.0,3.109539]
[1725036295912,8.5e-07,58202.0,58201.0,4.224979]
[1725036296815,0.15135515,58218.0,58217.0,0.085889]
[1725036297412,0.2499,58220.0,58219.0,0.085886]
[1725036298005,0.2754539,58220.0,58219.0,0.085886]
[1725036298808,0.2754539,58220.0,58219.0,0.086886]
[1725036299207,0.2584539,58220.0,58219.0,0.086886]
[1725036299411,1.4192539,58220.0,58217.0,0.001]
[1725036299603,0.53243947,58219.0,58209.0,0.3608]
[1725036299808,0.2,58210.0,58209.0,0.3608]
[1725036300304,0.2,58210.0,58200.0,0.2]
[1725036300509,0.285907,58205.0,58200.0,0.085913]
[1725036300710,0.085909,58204.0,58189.0,0.3608]
[1725036300913,0.3608,58190.0,58184.0,0.085937]
[1725036301130,0.2,58186.0,58178.0,0.2]
[1725036301415,0.2,58183.0,58180.0,0.085943]
[1725036301718,0.3608,58188.0,58180.0,0.085943]
[1725036301719,0.20025768,58187.0,58180.0,0.085943]
[1725036302017,0.00025768,58187.0,58186.0,0.085935]
[1725036302410,0.02588852,58187.0,58186.0,0.085935]
[1725036302610,0.00025768,58187.0,58186.0,0.085935]
[1725036303016,0.06191281,58187.0,58186.0,0.085935]
[1725036303610,0.00025768,58187.0,58186.0,0.446735]
[1725036304413,0.00025768,58187.0,58186.0,0.450735]
[1725036305914,0.00025768,58187.0,58186.0,1.65227]
[1725036306119,0.06165513,58200.0,58199.0,0.085916]
[1725036306305,0.06165513,58200.0,58199.0,0.646716]
[1725036306706,0.06165513,58200.0,58199.0,0.446716]
[1725036307313,0.06165513,58200.0,58199.0,0.447716]
[1725036307523,0.26165513,58200.0,58199.0,0.447716]
[1725036307822,0.26765513,58200.0,58199.0,0.448716]
[1725036308830,0.26165513,58200.0,58199.0,0.447716]
[1725036309118,0.26165513,58200.0,58199.0,0.449716]
[1725036309510,0.06165513,58200.0,58199.0,0.449716]
[1725036309815,0.02619305,58201.0,58199.0,0.449716]
[1725036310013,0.2,58204.0,58200.0,0.085914]
[1725036310205,0.2,58204.0,58200.0,0.045914]
[1725036310613,0.2,58204.0,58199.0,0.3618]
[1725036310815,0.2,58204.0,58202.0,0.08591]
[1725036311117,0.01704378,58205.0,58199.0,0.5668]
[1725036311118,0.02681632,58205.0,58199.0,0.5668]
[1725036311312,0.2,58208.0,58204.0,0.3608]
[1725036311623,0.34295401,58214.0,58206.0,0.2]
[1725036311919,0.2,58207.0,58204.0,0.3608]
[1725036312116,0.2,58207.0,58206.0,0.085906]
[1725036313624,0.2,58207.0,58206.0,0.086906]
[1725036314017,0.2,58207.0,58206.0,0.001]
[1725036314319,0.801306,58207.0,58204.0,0.3608]
[1725036314520,0.285906,58207.0,58206.0,0.001]
[1725036314920,0.801306,58207.0,58206.0,0.001]
[1725036315225,0.2,58207.0,58206.0,0.001]
[1725036315915,0.203,58207.0,58204.0,0.446708]
[1725036316224,0.203,58207.0,58206.0,0.086906]
[1725036316225,0.02962832,58207.0,58206.0,0.086906]
[1725036316423,0.02662832,58207.0,58206.0,0.086906]
[1725036316728,0.2,58209.0,58204.0,0.3608]
[1725036316913,0.2,58209.0,58208.0,0.085903]
[1725036317626,0.2,58212.0,58211.0,0.085898]
[1725036317815,0.21,58212.0,58211.0,0.085898]
[1725036318019,0.21,58212.0,58206.0,0.00125768]
[1725036318020,0.44713972,58212.0,58206.0,0.00125768]
[1725036318326,0.2115713,58211.0,58206.0,0.00125768]
[1725036318532,0.2115713,58210.0,58206.0,0.00125768]
[1725036318728,0.21154536,58209.0,58207.0,0.085904]
[1725036318914,0.14991684,58208.0,58207.0,0.085904]
[1725036320119,0.14991684,58208.0,58207.0,0.001]
[1725036320315,0.14991684,58208.0,58192.0,0.3608]
[1725036320316,0.5154,58207.0,58192.0,0.3608]
[1725036320620,0.2,58200.0,58199.0,0.085916]
[1725036320930,0.07051512,58200.0,58199.0,0.171832]
[1725036321223,0.14991684,58200.0,58199.0,0.171832]
[1725036321815,0.14991684,58200.0,58199.0,0.427932]
[1725036322124,0.15091684,58200.0,58199.0,0.51089081]
[1725036322918,0.07151512,58200.0,58199.0,0.51089081]
[1725036323419,0.001,58200.0,58199.0,1.62637081]
[1725036324717,0.00025768,58205.0,58204.0,0.171818]
[1725036324928,0.004,58219.0,58204.0,1.162149]
[1725036325224,0.3608,58223.0,58222.0,0.085882]
[1725036325225,0.004,58223.0,58222.0,0.085882]
[1725036325423,0.085879,58224.0,58223.0,0.085881]
[1725036325820,0.31694715,58224.0,58223.0,0.085881]
[1725036326226,0.03106815,58224.0,58223.0,0.085881]
[1725036326423,0.00088,58228.0,58227.0,0.085875]
[1725036326624,0.2,58230.0,58223.0,0.3608]
[1725036326826,0.2,58230.0,58228.0,0.085872]
[1725036327027,0.2,58230.0,58223.0,0.3618]
[1725036327028,0.2,58230.0,58229.0,0.085872]
[1725036327831,0.2,58230.0,58223.0,0.002]
[1725036327832,1.70758513,58230.0,58223.0,0.002]
[1725036328024,0.285879,58224.0,58223.0,0.002]
[1725036328218,0.285879,58224.0,58223.0,0.001]
[1725036328422,0.085881,58223.0,58219.0,0.085886]
[1725036328718,0.2,58220.0,58218.0,0.00025768]
[1725036328924,0.48,58219.0,58218.0,0.00025768]
[1725036331030,0.48335251,58223.0,58222.0,0.085882]
[1725036331031,0.03755151,58223.0,58222.0,0.085882]
[1725036331353,0.03067151,58223.0,58222.0,0.285882]
[1725036331628,0.2,58232.0,58222.0,0.2]
[1725036331831,0.2,58232.0,58230.0,0.08587]
[1725036331832,0.21751495,58232.0,58230.0,0.08587]
[1725036332228,0.2,58232.0,58230.0,0.08587]
[1725036332421,0.2,58232.0,58231.0,0.085869]
[1725036332928,0.7152,58232.0,58228.0,0.085873]
[1725036333234,0.2,58229.0,58228.0,0.085873]
[1725036333628,0.16,58229.0,58225.0,0.085877]
[1725036333826,0.2,58226.0,58225.0,0.085878]
[1725036334433,0.27,58226.0,58225.0,0.085878]
[1725036334625,0.27,58226.0,58210.0,0.56006815]
[1725036334822,0.2,58222.0,58221.0,0.085883]
[1725036335225,0.2,58225.0,58217.0,0.2]
[1725036335426,0.2,58225.0,58219.0,0.3608]
[1725036335629,0.2,58222.0,58221.0,0.085883]
[1725036336229,0.207,58222.0,58221.0,0.086883]
[1725036336634,0.207,58222.0,58221.0,0.087883]
[1725036337730,0.23833837,58222.0,58221.0,0.087883]
[1725036337935,0.23833837,58222.0,58221.0,0.002]
[1725036338122,1.35361837,58222.0,58221.0,0.002]
[1725036338327,0.085886,58219.0,58214.0,0.3608]
[1725036338523,0.65544353,58219.0,58214.0,0.3608]
[1725036338727,0.56955753,58219.0,58214.0,0.3608]
[1725036339128,0.5608,58219.0,58218.0,0.08614568]
[1725036339634,0.5608,58219.0,58218.0,0.08714568]
[1725036340034,0.03833837,58222.0,58221.0,0.085883]
[1725036340233,0.03833837,58222.0,58221.0,0.532566]
[1725036340535,0.17045007,58222.0,58221.0,0.532566]
[1725036340939,0.17045007,58222.0,58221.0,0.618449]
[1725036341138,0.17045007,58222.0,58221.0,2.908449]
[1725036341342,0.10883357,58222.0,58221.0,2.822566]
[1725036341528,0.10183357,58222.0,58221.0,2.822566]
[1725036341839,0.10183357,58222.0,58221.0,2.823566]
[1725036341840,0.16344029,58222.0,58221.0,2.823566]
[1725036342032,0.10183357,58222.0,58221.0,2.823566]
[1725036342335,0.11083357,58222.0,58221.0,2.910449]
[1725036343241,0.11083357,58222.0,58221.0,2.824566]
[1725036343434,0.11083357,58222.0,58221.0,2.910449]
[1725036343931,0.11083357,58222.0,58221.0,2.824566]
[1725036344433,0.00791704,58222.0,58221.0,4.025729]
[1725036344630,4e-08,58222.0,58221.0,4.025729]
[1725036344831,7.4e-07,58222.0,58221.0,4.111612]
[1725036345032,0.004,58238.0,58235.0,0.171726]
[1725036345344,0.2385,58243.0,58242.0,0.085852]
[1725036345534,0.26938173,58243.0,58242.0,0.085852]
[1725036346140,0.34874303,58243.0,58242.0,0.085852]
[1725036346440,0.5050758,58243.0,58238.0,0.085857]
[1725036346741,0.2,58239.0,58235.0,0.3608]
[1725036346942,0.14984207,58238.0,58235.0,0.3608]
[1725036347139,0.14984207,58237.0,58236.0,0.085861]
[1725036347939,0.14984207,58237.0,58236.0,0.285861]
[1725036348141,0.14984207,58237.0,58236.0,0.371722]
[1725036348345,0.14984207,58237.0,58236.0,0.457583]
[1725036348539,0.03088173,58243.0,58242.0,0.171704]
[1725036348842,0.44411795,58249.0,58246.0,0.085847]
[1725036349031,0.39133825,58247.0,58246.0,0.285847]
[1725036349741,0.39133825,58247.0,58246.0,0.371694]
[1725036349742,0.03053825,58247.0,58246.0,0.371694]
[1725036350048,0.44494469,58253.0,58252.0,0.085838]
[1725036350231,0.47602907,58253.0,58252.0,0.446638]
[1725036350431,0.47602907,58253.0,58252.0,0.532476]
[1725036350637,0.47602907,58253.0,58252.0,0.446638]
[1725036351637,0.03108438,58253.0,58252.0,0.446638]
[1725036351837,0.00853658,58262.0,58252.0,0.3608]
[1725036352039,0.01853658,58262.0,58258.0,0.3608]
[1725036352232,0.01,58262.0,58258.0,0.3608]
[1725036352941,0.2,58260.0,58258.0,0.3608]
[1725036353138,0.20873423,58260.0,58258.0,0.3608]
[1725036353645,0.20873423,58260.0,58258.0,0.3618]
[1725036354941,0.55218565,58263.0,58259.0,0.085827]
[1725036355132,0.5809709,58263.0,58259.0,0.085827]
[1725036355538,0.35050485,58262.0,58259.0,0.085827]
[1725036355739,0.35050485,58261.0,58259.0,0.085827]
[1725036355941,0.35050485,58260.0,58259.0,0.085827]
[1725036356349,0.35050485,58260.0,58259.0,0.086827]
[1725036356648,0.23810574,58260.0,58259.0,0.086827]
[1725036356852,0.35050485,58260.0,58259.0,0.086827]
[1725036357035,0.35050485,58260.0,58259.0,0.001]
[1725036357241,0.35050485,58260.0,58259.0,0.087827]
[1725036357446,0.23810574,58260.0,58259.0,0.287827]
[1725036359544,0.23810574,58260.0,58259.0,0.373654]
[1725036360050,0.23810574,58260.0,58259.0,0.287827]
[1725036360250,0.14984207,58260.0,58259.0,0.287827]
[1725036361052,0.14984207,58260.0,58259.0,0.373654]
[1725036361363,0.14984207,58260.0,58259.0,0.285827]
[1725036361536,0.0793613,58260.0,58259.0,0.371654]
[1725036361952,0.0793613,58260.0,58259.0,0.373654]
[1725036362536,0.0793613,58260.0,58259.0,0.372654]
[1725036362744,0.0793613,58260.0,58259.0,0.087827]
[1725036363147,0.0793613,58260.0,58259.0,0.287827]
[1725036363652,0.3608,58262.0,58261.0,0.085824]
[1725036364143,0.03066365,58263.0,58262.0,0.171646]
[1725036364341,0.3608,58269.0,58262.0,0.171646]
[1725036364342,0.3608,58269.0,58268.0,0.085814]
[1725036364544,0.3608,58269.0,58268.0,0.285814]
[1725036365254,0.03036318,58269.0,58268.0,0.457442]
[1725036365445,0.3618,58276.0,58275.0,0.085804]
[1725036365641,0.3608,58276.0,58275.0,0.085804]
[1725036366152,0.39127141,58276.0,58275.0,0.085804]
[1725036366339,0.39127141,58276.0,58275.0,0.285804]
[1725036366745,0.39127141,58276.0,58275.0,0.286804]
[1725036366941,0.39127141,58276.0,58275.0,2.376804]
[1725036367247,0.39127141,58276.0,58275.0,0.086804]
[1725036367852,0.03047141,58276.0,58275.0,0.086804]
[1725036368050,0.085802,58276.0,58275.0,0.002]
[1725036368254,0.446602,58276.0,58275.0,0.002]
[1725036368549,0.085811,58270.0,58269.0,0.2462]
[1725036368754,0.646611,58270.0,58269.0,0.2462]
[1725036368940,0.732422,58270.0,58269.0,0.2462]
[1725036369347,1.761451,58270.0,58269.0,0.2462]
[1725036369751,1.847262,58270.0,58269.0,0.18088]
[1725036370058,0.08582,58264.0,58263.0,0.00025746]
[1725036370253,0.64662,58264.0,58263.0,0.00025746]
[1725036370452,0.8543504,58264.0,58249.0,0.27417015]
[1725036370755,0.2,58255.0,58254.0,0.085834]
[1725036371052,0.1675766,58255.0,58254.0,0.085834]
[1725036371355,0.1675766,58255.0,58254.0,1.372504]
[1725036371659,0.0744906,58255.0,58251.0,0.7216]
[1725036371950,0.19418519,58254.0,58251.0,0.7216]
[1725036372146,0.19418519,58253.0,58251.0,0.7216]
[1725036372347,0.002,58255.0,58251.0,0.7216]
[1725036372643,0.07933677,58254.0,58253.0,0.285836]
[1725036373046,0.18731057,58254.0,58253.0,0.886672]
[1725036373246,0.17463295,58254.0,58253.0,1.572508]
[1725036373446,0.00025671,58260.0,58259.0,0.171654]
[1725036373754,0.19440211,58260.0,58259.0,1.78100756]
[1725036373949,0.08845427,58260.0,58259.0,1.78100756]
[1725036374149,0.08845427,58260.0,58259.0,1.86683456]
[1725036374457,0.16776879,58260.0,58259.0,1.86683456]
[1725036375255,0.16776879,58260.0,58259.0,4.15683456]
[1725036375454,0.17076879,58260.0,58259.0,4.15783456]
[1725036376252,0.17076879,58260.0,58259.0,4.15883456]
[1725036376654,0.17076879,58260.0,58259.0,4.15683456]
[1725036376849,0.17076879,58260.0,58259.0,4.17083456]
[1725036377050,0.17076879,58260.0,58259.0,3.57083456]
[1725036377251,0.17076879,58260.0,58259.0,4.17083456]
[1725036377754,0.16776879,58260.0,58259.0,4.17083456]
[1725036377960,0.16776879,58260.0,58259.0,4.602001]
[1725036378554,0.03024452,58269.0,58268.0,0.085814]
[1725036378753,0.2,58277.0,58276.0,0.085802]
[1725036379261,0.23090985,58277.0,58276.0,0.085802]
[1725036380065,0.4571,58282.0,58274.0,0.2]
[1725036380254,0.4571,58282.0,58281.0,0.085795]
[1725036380659,0.2,58286.0,58285.0,0.085789]
[1725036381264,0.39210249,58287.0,58286.0,0.085788]
[1725036381460,0.03130249,58287.0,58286.0,0.085788]
[1725036381660,0.2,58294.0,58290.0,0.085781]
[1725036381859,0.2,58294.0,58285.0,0.3608]
[1725036381860,0.2,58294.0,58286.0,0.00025746]
[1725036382065,0.2,58291.0,58286.0,0.00025746]
[1725036382360,0.2,58288.0,58286.0,0.00025746]
[1725036382558,0.2,58288.0,58287.0,0.085786]
[1725036383159,0.2,58288.0,58286.0,0.00025746]
[1725036383365,0.2,58288.0,58286.0,0.00125746]
[1725036383565,0.2,58288.0,58286.0,0.08704546]
[1725036383955,0.2,58288.0,58287.0,0.001]
[1725036384157,0.085783,58289.0,58287.0,0.001]
[1725036384362,0.2,58288.0,58287.0,0.001]
[1725036384565,0.2,58288.0,58286.0,0.08704546]
[1725036384765,0.2,58288.0,58286.0,0.09104546]
[1725036384966,0.446583,58289.0,58286.0,0.09104546]
[1725036385160,0.2,58288.0,58286.0,0.09104546]
[1725036385373,0.2,58291.0,58286.0,0.00425746]
[1725036385764,0.3608,58288.0,58286.0,0.09004346]
[1725036385963,0.2,58287.0,58286.0,0.09004346]
[1725036386560,0.2,58287.0,58286.0,0.00025746]
[1725036386868,0.285786,58287.0,58286.0,0.00025746]
[1725036387269,0.285786,58287.0,58286.0,0.00725746]
[1725036387977,0.3608,58288.0,58287.0,0.085786]
[1725036388274,0.2,58290.0,58288.0,0.085785]
[1725036388773,0.2,58290.0,58286.0,0.00525746]
[1725036389073,0.2,58290.0,58286.0,0.00425746]
[1725036389260,0.2,58290.0,58287.0,0.001]
[1725036389462,0.23160009,58290.0,58287.0,0.001]
[1725036389767,0.23160009,58290.0,58289.0,0.085783]
[1725036389768,0.03160009,58290.0,58289.0,0.085783]
[1725036389974,0.2,58290.0,58289.0,0.085783]
[1725036390772,0.5608,58290.0,58289.0,0.085783]
[1725036390961,0.5608,58290.0,58289.0,0.004]
[1725036391163,1.07548,58290.0,58286.0,0.00025746]
[1725036391378,1.07548,58290.0,58274.0,0.3608]
[1725036391379,0.085795,58281.0,58274.0,0.3608]
[1725036391569,0.085795,58281.0,58262.0,2.581422]
[1725036391570,0.646604,58275.0,58264.0,0.27417015]
[1725036391772,0.2,58274.0,58270.0,0.08581]
[1725036391973,0.2,58271.0,58264.0,0.27417015]
[1725036392473,0.00088,58280.0,58279.0,0.085798]
[1725036392666,0.2,58282.0,58274.0,0.009]
[1725036392667,0.2,58282.0,58276.0,0.3608]
[1725036392863,0.20025746,58285.0,58276.0,0.3608]
[1725036393073,0.20025746,58285.0,58278.0,0.2]
[1725036393471,0.08818393,58284.0,58278.0,0.02202336]
[1725036393667,0.19411784,58283.0,58276.0,0.5608]
[1725036393873,0.23111576,58285.0,58282.0,0.085794]
[1725036394071,0.27340221,58284.0,58282.0,0.085794]
[1725036394270,0.27340221,58283.0,58282.0,0.085794]
[1725036394667,0.27340221,58283.0,58276.0,0.3608]
[1725036394864,0.47340221,58282.0,58280.0,0.085795]
[1725036395068,0.27340221,58281.0,58280.0,0.085795]
[1725036396574,0.63420221,58281.0,58276.0,0.217]
[1725036396878,0.26640221,58280.0,58279.0,0.085798]
[1725036397474,0.18710182,58280.0,58279.0,0.085798]
[1725036398372,0.18010182,58280.0,58279.0,0.285798]
[1725036399079,0.17810182,58280.0,58279.0,0.285798]
[1725036399472,0.17810182,58280.0,58279.0,0.085798]
[1725036399671,0.17810182,58280.0,58279.0,0.07721821]
[1725036399869,0.17910182,58280.0,58279.0,0.08621821]
[1725036400282,0.37810182,58280.0,58279.0,0.07721821]
[1725036400477,0.37910182,58280.0,58279.0,0.08621821]
[1725036400669,0.001,58280.0,58279.0,0.08621821]
[1725036401173,0.3608,58281.0,58280.0,0.257391]
[1725036401478,0.03111576,58285.0,58284.0,0.257373]
[1725036401669,0.00025746,58285.0,58284.0,0.457373]
[1725036402274,0.00025746,58285.0,58284.0,0.713073]
[1725036403875,0.00625746,58285.0,58284.0,0.713073]
[1725036404182,0.00725746,58285.0,58284.0,3.007073]
[1725036404375,0.00125746,58285.0,58284.0,3.007073]
[1725036404578,0.00025746,58285.0,58284.0,3.007073]
[1725036404784,0.00125746,58285.0,58284.0,3.011073]
[1725036405381,0.00125746,58285.0,58284.0,4.125793]
[1725036406673,0.004,58298.0,58297.0,0.257313]
[1725036406873,0.3608,58310.0,58301.0,0.171532]
[1725036407074,0.3608,58310.0,58303.0,0.285763]
[1725036407376,0.3608,58310.0,58303.0,3.176086]
[1725036407774,0.0305915,58305.0,58304.0,0.171522]
[1725036408090,0.450535,58322.0,58321.0,0.085736]
[1725036408278,0.3608,58322.0,58319.0,0.2]
[1725036408679,0.25736156,58321.0,58320.0,0.05324168]
[1725036408982,0.34309756,58321.0,58316.0,0.28600021]
[1725036409182,0.34309756,58321.0,58316.0,0.08600021]
[1725036409183,0.3608,58317.0,58316.0,0.08600021]
[1725036409389,0.61816156,58317.0,58316.0,0.08600021]
[1725036409682,0.53890182,58317.0,58316.0,0.08600021]
[1725036410377,0.53890182,58317.0,58316.0,0.00025721]
[1725036410685,0.53890182,58317.0,58316.0,0.00121686]
[1725036410983,0.77007591,58317.0,58307.0,0.82260491]
[1725036411287,0.17810182,58316.0,58307.0,0.5608]
[1725036411489,0.17810182,58315.0,58311.0,0.08575]
[1725036411688,0.3608,58312.0,58304.0,0.08576]
[1725036411982,0.3608,58312.0,58301.0,0.5387]
[1725036411983,0.285761,58305.0,58302.0,0.00025721]
[1725036412190,0.67420182,58304.0,58302.0,0.00025721]
[1725036412375,0.67420182,58304.0,58302.0,0.08602121]
[1725036412376,0.17810182,58303.0,58302.0,0.08602121]
[1725036412988,0.07217565,58303.0,58302.0,0.08602121]
[1725036413375,0.49698,58304.0,58303.0,0.085763]
[1725036413572,0.3608,58306.0,58305.0,0.08576]
[1725036414386,0.39172328,58306.0,58305.0,0.68604]
[1725036414691,0.39172328,58306.0,58305.0,1.24878448]
[1725036414692,0.17810182,58306.0,58305.0,1.24878448]
[1725036414874,0.17810182,58306.0,58305.0,0.13426448]
[1725036415077,0.2,58313.0,58311.0,0.085751]
[1725036415281,0.39107757,58312.0,58311.0,0.085751]
[1725036417082,0.39207757,58312.0,58311.0,0.086751]
[1725036417276,0.59207757,58312.0,58311.0,0.086751]
[1725036417480,0.39207757,58312.0,58311.0,0.086751]
[1725036417680,0.39807757,58312.0,58311.0,0.087751]
[1725036418098,0.03727757,58312.0,58311.0,0.087751]
[1725036419283,0.23727757,58312.0,58311.0,0.087751]
[1725036421581,0.03727757,58312.0,58311.0,0.259253]
[1725036421782,0.007,58312.0,58311.0,0.173502]
[1725036422988,0.00025635,58314.0,58313.0,0.257244]
[1725036423181,3.5e-07,58314.0,58313.0,0.542992]
[1725036423380,3.5e-07,58314.0,58313.0,1.917972]
[1725036423795,0.004,58327.0,58324.0,0.171464]
[1725036424090,0.004,58341.0,58340.0,0.085708]
[1725036424291,0.004,58341.0,58326.0,0.285729]
[1725036424292,0.36943308,58341.0,58336.0,0.085714]
[1725036424486,0.2,58339.0,58331.0,0.2]
[1725036424684,0.2,58339.0,58338.0,0.085711]
[1725036424987,0.50578,58340.0,58339.0,0.08571]
[1725036424988,0.51427576,58340.0,58339.0,0.08571]
[1725036425187,0.51339576,58340.0,58339.0,0.08571]
[1725036425379,0.5049,58340.0,58339.0,0.08571]
[1725036425584,0.3608,58341.0,58340.0,0.085708]
[1725036427892,0.3608,58341.0,58340.0,0.087708]
[1725036429595,0.5608,58341.0,58340.0,0.002]
[1725036429891,1.760747,58341.0,58340.0,0.002]
[1725036430785,1.160747,58341.0,58340.0,0.002]
[1725036430992,1.760747,58341.0,58340.0,0.002]
[1725036431287,1.67504,58341.0,58323.0,0.085733]
[1725036431494,0.3608,58324.0,58323.0,0.085733]
[1725036432389,0.36105721,58329.0,58328.0,0.085726]
[1725036432695,0.36105721,58329.0,58328.0,0.285726]
[1725036432894,0.36105721,58329.0,58328.0,0.371452]
[1725036433189,0.36105721,58329.0,58328.0,1.485772]
[1725036433385,0.00025721,58329.0,58328.0,1.485772]
[1725036433791,0.00025721,58329.0,58328.0,1.744872]
[1725036433986,0.00025721,58329.0,58328.0,1.557672]
[1725036434494,0.36205721,58329.0,58328.0,0.087726]
[1725036434688,0.00125721,58329.0,58328.0,0.087726]
[1725036435391,0.36205721,58329.0,58328.0,0.087726]
[1725036435898,0.36205721,58329.0,58328.0,0.002]
[1725036436191,0.36205721,58329.0,58328.0,0.087726]
[1725036436584,0.36105721,58329.0,58328.0,0.087726]
[1725036436786,0.36105721,58329.0,58328.0,0.180452]
[1725036437282,0.00025721,58329.0,58328.0,0.182452]
[1725036437486,0.00125721,58329.0,58328.0,0.689772]
[1725036437683,0.39177129,58334.0,58333.0,0.171438]
[1725036437684,0.33171784,58334.0,58333.0,0.171438]
[1725036437891,0.28882258,58334.0,58333.0,0.23957767]
[1725036438090,0.28882258,58334.0,58333.0,0.171438]
[1725036438700,0.3608,58341.0,58340.0,0.085708]
[1725036438895,0.50258,58344.0,58343.0,0.085704]
[1725036438896,0.00088,58344.0,58343.0,0.085704]
[1725036439095,0.3608,58352.0,58351.0,0.085692]
[1725036439290,0.3608,58352.0,58348.0,0.085696]
[1725036439291,0.48947331,58352.0,58348.0,0.085696]
[1725036439597,0.48947331,58352.0,58345.0,0.05109137]
[1725036439598,0.085699,58346.0,58345.0,0.05109137]
[1725036439794,0.085701,58345.0,58339.0,0.05109137]
[1725036440090,0.3608,58340.0,58334.0,0.05109137]
[1725036440297,0.3608,58340.0,58333.0,0.085718]
[1725036440298,0.696513,58337.0,58333.0,0.085718]